bitfinex-derivatives/quotes_SOLF0:USTF0_20250714
["timestamp","ask_amount","ask_price","bid_price","bid_amount"]
[1752461659462,3.55,164.99,164.93,3.47]
[1752461660566,3.55,164.96,164.89,3.47]
[1752461660767,3.55,164.96,164.88,2.90791119]
[1752461660768,3.55,164.95,164.92,3.47]
[1752461661757,9.6106,164.95,164.91,2.90791119]
[1752461661958,9.6106,164.95,164.94,3.47]
[1752461662965,3.55,164.93,164.92,3.47]
[1752461663464,9.6105,164.95,164.93,3.47]
[1752461664162,3.55,164.95,164.91,8.96971119]
[1752461664363,3.55,164.95,164.94,3.47]
[1752461665164,6.0604,164.95,164.91,2.90791119]
[1752461665365,3.55,164.94,164.93,3.47]
[1752461666159,3.55,164.93,164.89,3.47]
[1752461666458,3.55,164.93,164.87,2.90791119]
[1752461666665,6.0619,164.91,164.86,2.90791119]
[1752461666854,3.55,164.9,164.87,3.47]
[1752461667862,3.55,164.9,164.87,9.5332]
[1752461668064,3.55,164.9,164.89,3.47]
[1752461669461,3.55,164.93,164.87,3.47]
[1752461669657,2.90791119,164.9,164.78,3.47]
[1752461669864,6.0636,164.87,164.83,3.47]
[1752461670163,3.55,164.86,164.83,3.47]
[1752461670864,3.55,164.86,164.83,6.0647]
[1752461671070,9.683,164.88,164.85,3.33]
[1752461671365,3.62,164.87,164.85,6.064]
[1752461671667,3.62,164.87,164.84,2.90791119]
[1752461671668,3.62,164.87,164.86,3.33]
[1752461671968,6.52791119,164.94,164.86,6.23791119]
[1752461672267,6.0626,164.89,164.87,3.33]
[1752461672462,3.62,164.89,164.85,2.90791119]
[1752461672657,2.90791119,164.88,164.68,62.0]
[1752461672858,3.62,164.84,164.79,2.90791119]
[1752461673064,3.62,164.87,164.8,3.33]
[1752461674066,3.62,164.83,164.8,3.33]
[1752461674464,3.62,164.82,164.81,3.33]
[1752461674664,3.62,164.82,164.75,2.90791119]
[1752461674969,3.62,164.82,164.76,3.33]
[1752461675159,6.0657,164.81,164.77,6.067]
[1752461675367,3.62,164.8,164.78,3.33]
[1752461675661,2.90791119,164.82,164.78,3.33]
[1752461675866,6.0659,164.8,164.78,3.33]
[1752461676067,3.62,164.79,164.78,3.33]
[1752461677260,3.62,164.81,164.75,3.33]
[1752461677767,3.62,164.77,164.75,3.33]
[1752461677968,2.90791119,164.82,164.75,3.33]
[1752461678167,3.62,164.78,164.76,3.33]
[1752461678363,6.0669,164.78,164.75,3.33]
[1752461678560,3.62,164.81,164.75,3.33]
[1752461678870,6.0666,164.78,164.75,3.33]
[1752461679071,3.62,164.77,164.76,3.33]
[1752461680569,3.62,164.78,164.77,3.33]
[1752461680870,3.62,164.8,164.76,9.3973]
[1752461681171,3.62,164.79,164.78,3.33]
[1752461681378,9.6862,164.79,164.78,3.33]
[1752461681569,3.62,164.8,164.76,3.33]
[1752461681871,6.0669,164.78,164.76,3.33]
[1752461682069,3.62,164.77,164.76,3.33]
[1752461682570,6.52791119,164.77,164.72,3.33]
[1752461682772,3.62,164.75,164.73,3.33]
[1752461684065,3.62,164.78,164.73,3.33]
[1752461684267,2.90791119,164.79,164.73,3.33]
[1752461684468,3.62,164.76,164.73,6.23791119]
[1752461684663,3.62,164.76,164.75,3.33]
[1752461685573,9.6874,164.76,164.75,3.33]
[1752461686774,9.6874,164.76,164.75,9.23856101]
[1752461687077,3.62,164.84,164.76,3.33]
[1752461687271,3.62,164.84,164.78,2.90791119]
[1752461687472,3.62,164.84,164.79,9.23856101]
[1752461687774,3.62,164.84,164.79,3.33]
[1752461687976,3.62,164.82,164.79,3.33]
[1752461688371,3.62,164.81,164.79,3.33]
[1752461688572,3.62,164.81,164.8,9.24237944]
[1752461688769,3.62,164.85,164.8,9.24237944]
[1752461688967,3.62,164.85,164.81,9.24237944]
[1752461689278,9.685,164.83,164.81,3.33]
[1752461690071,3.62,164.83,164.82,9.24544447]
[1752461690376,3.62,164.85,164.83,3.33]
[1752461690578,3.62,164.85,164.84,3.33]
[1752461690776,2.90791119,164.89,164.81,2.90791119]
[1752461691073,3.62,164.84,164.83,3.33]
[1752461691278,3.62,164.85,164.84,3.33]
[1752461691480,3.62,164.85,164.84,5.91415001]
[1752461691873,3.62,164.85,164.84,9.24415001]
[1752461693074,9.6842,164.85,164.84,9.24415001]
[1752461693270,9.6842,164.85,164.84,5.91415001]
[1752461695482,3.62,164.85,164.84,5.91415001]
[1752461695686,3.62,164.85,164.84,9.24415001]
[1752461696178,6.0638,164.86,164.85,3.33]
[1752461696379,5.00681377,164.96,164.86,3.33]
[1752461696679,3.62,164.88,164.87,9.24415001]
[1752461696881,3.62,164.9,164.87,8.8220612]
[1752461697085,3.62,164.9,164.89,3.33]
[1752461697278,3.62,164.9,164.89,9.24415001]
[1752461697675,9.6823,164.9,164.89,9.24415001]
[1752461697876,9.6823,164.9,164.89,3.33]
[1752461698076,9.6823,164.9,164.89,9.27717927]
[1752461698479,3.62,164.89,164.8,2.90791119]
[1752461698684,705.24,164.92,164.84,2.90791119]
[1752461698881,3.62,164.88,164.84,2.90791119]
[1752461699289,3.62,164.87,164.84,2.90791119]
[1752461700090,9.6836,164.87,164.84,2.90791119]
[1752461700484,3.62,164.87,164.84,2.90791119]
[1752461700687,9.6833,164.87,164.86,3.47]
[1752461700883,3.53,164.86,164.85,3.47]
[1752461701088,3.53,164.86,164.82,2.90791119]
[1752461701393,3.53,164.86,164.81,3.47]
[1752461701588,6.43791119,164.85,164.79,3.47]
[1752461701792,3.53,164.84,164.79,3.47]
[1752461702392,6.0659,164.8,164.79,3.47]
[1752461702592,3.53,164.8,164.79,3.47]
[1752461703595,9.5959,164.8,164.79,3.47]
[1752461704188,6.0659,164.8,164.79,3.47]
[1752461704392,3.53,164.85,164.8,3.47]
[1752461704693,3.53,164.85,164.83,3.47]
[1752461704893,181.38,164.88,164.83,3.47]
[1752461705092,3.53,164.84,164.83,3.47]
[1752461705791,3.53,164.85,164.84,3.47]
[1752461705989,181.38,164.9,164.86,3.47]
[1752461706188,9.5929,164.88,164.86,3.47]
[1752461706390,9.5929,164.88,164.87,3.47]
[1752461706786,6.0626,164.89,164.87,3.47]
[1752461706987,3.53,164.91,164.87,3.47]
[1752461707291,3.53,164.91,164.85,4.85424813]
[1752461707292,3.53,164.91,164.85,8.32424813]
[1752461707497,3.53,164.91,164.86,3.47]
[1752461707692,3.53,164.91,164.87,3.47]
[1752461708400,9.5928,164.89,164.87,3.47]
[1752461708695,6.0628,164.89,164.8,4.85424813]
[1752461708895,6.0628,164.89,164.88,3.47]
[1752461709095,9.5928,164.89,164.88,3.47]
[1752461709496,6.0628,164.89,164.88,3.47]
[1752461709895,3.53,164.91,164.88,3.47]
[1752461710096,3.53,164.95,164.91,3.47]
[1752461710293,3.53,164.95,164.92,4.85424813]
[1752461710500,6.061,164.94,164.93,3.47]
[1752461712098,3.53,164.99,164.93,3.47]
[1752461712302,3.53,164.99,164.96,4.85424813]
[1752461712501,3.53,164.99,164.97,3.47]
[1752461712701,6.0592,164.98,164.97,3.47]
[1752461713197,6.059,164.99,164.98,3.47]
[1752461713799,3.53,165.01,164.99,3.47]
[1752461713998,3.53,165.01,165.0,3.47]
[1752461714198,6.0585,165.0,164.99,3.47]
[1752461714498,3.53,165.03,164.97,3.47]
[1752461714698,184.79,165.04,165.0,3.47]
[1752461714901,3.53,165.01,164.99,3.47]
[1752461715099,181.26,165.04,164.99,3.47]
[1752461715100,3.53,165.03,164.99,3.47]
[1752461715702,3.53,165.03,164.97,3.47]
[1752461717106,6.0588,165.0,164.98,4.85424813]
[1752461717401,6.0588,165.0,164.99,3.47]
[1752461717599,9.5888,165.0,164.99,3.47]
[1752461717798,3.53,164.99,164.95,4.85424813]
[1752461717999,3.53,164.99,164.96,3.47]
[1752461718406,6.0596,164.97,164.96,3.47]
[1752461718813,6.0593,164.98,164.96,3.47]
[1752461719005,3.53,164.99,164.97,3.47]
[1752461719406,6.0592,164.98,164.96,3.47]
[1752461719609,3.53,164.99,164.96,3.47]
[1752461719913,3.53,164.98,164.97,3.47]
[1752461720109,9.5892,164.98,164.97,3.47]
[1752461720413,6.0592,164.98,164.97,3.47]
[1752461721409,9.5892,164.98,164.97,3.47]
[1752461722212,6.0592,164.98,164.97,3.47]
[1752461723710,6.059,164.99,164.98,3.47]
[1752461724610,6.0586,165.0,164.99,3.47]
[1752461725306,9.5886,165.0,164.99,3.47]
[1752461726813,6.0593,164.98,164.97,3.47]
[1752461727412,9.5896,164.97,164.96,3.47]
[1752461727615,3.53,164.97,164.96,3.47]
[1752461729118,9.5896,164.97,164.96,3.47]
[1752461731017,6.0602,164.96,164.94,6.17895879]
[1752461731217,6.0602,164.96,164.95,3.27]
[1752461731218,9.4302,164.96,164.95,3.27]
[1752461734419,3.37,164.96,164.9,2.90895879]
[1752461735023,3.37,164.96,164.91,3.27]
[1752461735920,6.061,164.94,164.91,9.3316]
[1752461736115,9.431,164.94,164.93,3.27]
[1752461738623,3.37,164.94,164.93,3.27]
[1752461742328,3.37,164.93,164.92,3.27]
[1752461742522,3.37,164.98,164.92,3.27]
[1752461743016,3.37,164.95,164.93,3.27]
[1752461743216,3.37,164.95,164.94,3.27]
[1752461743618,9.4303,164.95,164.92,6.0613]
[1752461743821,3.37,164.94,164.93,3.27]
[1752461744118,3.37,164.94,164.93,9.3311]
[1752461744728,3.37,164.94,164.93,3.27]
[1752461748034,3.37,164.94,164.91,3.27]
[1752461748534,6.0611,164.93,164.91,3.27]
[1752461748727,3.37,164.92,164.89,3.27]
[1752461749129,9.4317,164.92,164.89,9.3323]
[1752461749327,3.37,164.93,164.9,6.17895879]
[1752461749530,3.37,164.96,164.92,3.27]
[1752461749731,3.37,164.93,164.92,3.27]
[1752461750536,3.37,164.93,164.91,6.0617]
[1752461750732,3.37,164.92,164.91,9.3317]
[1752461751034,3.37,164.92,164.9,2.90895879]
[1752461751236,3.37,164.92,164.9,6.17895879]
[1752461751427,3.37,164.92,164.9,9.3322]
[1752461751625,3.37,164.92,164.9,3.27]
[1752461752237,6.0616,164.92,164.9,3.27]
[1752461752433,3.37,164.91,164.9,3.27]
[1752461753132,3.37,164.91,164.9,9.3322]
[1752461754839,3.37,164.91,164.9,3.27]
[1752461756340,3.37,164.91,164.87,3.27]
[1752461756838,3.37,164.89,164.88,3.27]
[1752461757241,3.37,164.89,164.88,9.3329]
[1752461757434,3.37,164.89,164.88,3.27]
[1752461757740,3.37,164.88,164.85,3.27]
[1752461758539,3.37,164.88,164.83,2.90895879]
[1752461758737,3.37,164.88,164.85,3.27]
[1752461759038,3.37,164.86,164.85,3.27]
[1752461759543,3.37,164.85,164.84,6.0642]
[1752461759842,3.37,164.85,164.84,9.3342]
[1752461760140,3.37,164.85,164.84,3.27]
[1752461760337,3.37,164.85,164.82,3.63]
[1752461760542,3.34,164.87,164.81,403.14292055]
[1752461760735,6.0643,164.85,164.82,9.695]
[1752461760935,3.34,164.88,164.81,399.51292055]
[1752461761439,3.34,164.88,164.82,3.63]
[1752461761636,3.34,164.84,164.82,3.63]
[1752461761838,3.34,164.84,164.81,184.27]
[1752461762042,3.34,164.84,164.81,3.63]
[1752461762642,3.34,164.84,164.79,3.63]
[1752461763144,3.34,164.81,164.79,3.63]
[1752461763436,3.34,164.81,164.76,2.90895879]
[1752461763636,3.34,164.81,164.77,3.63]
[1752461763837,3.34,164.81,164.75,6.53895879]
[1752461764143,6.0659,164.8,164.76,6.0671]
[1752461764342,6.0659,164.8,164.76,9.6971]
[1752461764639,3.34,164.79,164.76,9.6971]
[1752461764845,3.34,164.78,164.76,9.6971]
[1752461765146,3.34,164.78,164.76,3.63]
[1752461765342,3.34,164.78,164.75,8.97655879]
[1752461765343,3.34,164.82,164.64,6.56049681]
[1752461765643,3.34,164.74,164.71,3.63]
[1752461766034,3.34,164.74,164.7,9.6993]
[1752461766738,5.04407369,164.81,164.72,2.90895879]
[1752461766933,523.94,164.82,164.72,2.90895879]
[1752461766934,3.34,164.8,164.76,2.90895879]
[1752461767136,3.34,164.8,164.76,6.53895879]
[1752461767336,6.0665,164.79,164.74,8.97695879]
[1752461767535,3.34,164.78,164.75,3.63]
[1752461768145,3.34,164.77,164.75,3.63]
[1752461768338,3.34,164.79,164.76,3.63]
[1752461768542,3.34,164.86,164.79,3.63]
[1752461768737,3.34,164.86,164.8,2.90895879]
[1752461768944,3.34,164.86,164.82,3.63]
[1752461769544,6.0639,164.86,164.82,9.6951]
[1752461769742,3.34,164.85,164.82,3.63]
[1752461769944,3.34,164.85,164.8,6.53895879]
[1752461770243,3.34,164.85,164.79,3.63]
[1752461770443,3.34,164.85,164.79,6.53895879]
[1752461770644,6.0645,164.84,164.79,12.60495879]
[1752461770840,3.34,164.83,164.79,12.60495879]
[1752461771040,3.34,164.83,164.77,2.90895879]
[1752461771438,3.34,164.81,164.78,6.0665]
[1752461771947,6.0649,164.83,164.79,6.0662]
[1752461772246,3.34,164.82,164.78,3.63]
[1752461772947,6.0655,164.82,164.77,8.97555879]
[1752461773147,3.34,164.81,164.77,3.63]
[1752461773843,3.34,164.8,164.77,3.63]
[1752461774748,3.34,164.79,164.74,3.63]
[1752461774943,3.34,164.78,164.72,6.53895879]
[1752461775146,6.0676,164.76,164.72,6.53895879]
[1752461775342,6.0676,164.76,164.72,3.63]
[1752461775543,3.34,164.73,164.72,3.63]
[1752461776038,3.34,164.76,164.71,3.63]
[1752461776346,6.0677,164.75,164.71,3.63]
[1752461776538,3.34,164.72,164.71,3.63]
[1752461776945,3.34,164.75,164.72,3.63]
[1752461777451,3.34,164.74,164.73,3.63]
[1752461777651,3.34,164.79,164.73,3.63]
[1752461777844,3.34,164.79,164.75,6.53895879]
[1752461778058,2.90895879,164.82,164.76,3.63]
[1752461778255,3.34,164.78,164.76,3.63]
[1752461778445,3.34,164.81,164.74,12.60685879]
[1752461779155,3.34,164.78,164.75,9.6977]
[1752461779345,3.34,164.77,164.76,3.63]
[1752461781146,3.34,164.76,164.75,3.63]
[1752461782350,3.34,164.76,164.75,9.6977]
[1752461783548,3.34,164.76,164.75,3.63]
[1752461784455,3.34,164.76,164.75,9.6977]
[1752461785850,3.34,164.81,164.74,2.90895879]
[1752461786451,3.34,164.81,164.74,8.97695879]
[1752461786659,3.34,164.81,164.74,12.60695879]
[1752461786847,3.34,164.78,164.75,3.63]
[1752461787052,3.34,164.78,164.75,9.6977]
[1752461787558,3.34,164.77,164.75,3.63]
[1752461787757,3.34,164.76,164.75,3.63]
[1752461788954,6.0666,164.78,164.74,8.97695879]
[1752461788955,6.067,164.77,164.74,8.97695879]
[1752461789159,3.34,164.75,164.74,6.53895879]
[1752461789552,3.34,164.74,164.73,3.63]
[1752461789955,3.34,164.79,164.72,2.90895879]
[1752461790457,3.34,164.79,164.72,8.97775879]
[1752461790658,6.0677,164.76,164.72,8.97775879]
[1752461790854,3.59,164.75,164.68,2.90895879]
[1752461791161,3.59,164.75,164.69,3.4]
[1752461791355,3.59,164.71,164.69,3.4]
[1752461791556,3.59,164.7,164.69,3.4]
[1752461796160,3.59,164.7,164.68,8.97895879]
[1752461796367,3.59,164.7,164.69,3.4]
[1752461797261,3.59,164.7,164.69,9.4699]
[1752461797462,3.59,164.79,164.68,2.90895879]
[1752461797664,3.59,164.78,164.72,6.30895879]
[1752461797864,6.0678,164.75,164.72,6.30895879]
[1752461798064,3.59,164.79,164.74,2.90895879]
[1752461798266,3.59,164.79,164.75,3.4]
[1752461798566,3.59,164.76,164.74,6.30895879]
[1752461799064,3.59,164.75,164.74,6.30895879]
[1752461800366,3.59,164.75,164.74,12.37705879]
[1752461800562,3.59,164.77,164.74,6.30895879]
[1752461800767,3.59,164.76,164.75,3.4]
[1752461801168,3.59,164.76,164.75,9.4676]
[1752461802059,3.59,164.76,164.74,12.37685879]
[1752461802668,3.59,164.76,164.75,3.4]
[1752461802867,3.59,164.76,164.75,9.4677]
[1752461803168,3.59,164.76,164.75,3.4]
[1752461803568,3.59,164.79,164.75,3.4]
[1752461803768,3.59,164.83,164.78,2.90895879]
[1752461804067,6.0661,164.8,164.76,12.37605879]
[1752461804267,3.59,164.78,164.77,3.4]
[1752461804566,3.59,164.78,164.76,2.90895879]
[1752461804567,3.59,164.8,164.76,2.90895879]
[1752461804771,3.59,164.8,164.79,6.30895879]
[1752461806071,3.59,164.8,164.79,3.4]
[1752461806671,3.59,164.8,164.69,3.4]
[1752461806865,3.59,164.8,164.75,2.90895879]
[1752461807069,3.59,164.8,164.76,3.4]
[1752461807264,6.0665,164.79,164.77,3.4]
[1752461807470,3.59,164.78,164.77,3.4]
[1752461808767,3.59,164.78,164.76,6.0673]
[1752461808974,3.59,164.77,164.76,9.4673]
[1752461810779,3.59,164.77,164.76,3.4]
[1752461811277,6.0659,164.8,164.76,9.467]
[1752461811478,3.59,164.79,164.77,2.90895879]
[1752461811778,3.59,164.83,164.77,6.30895879]
[1752461812177,3.59,164.83,164.77,12.37565879]
[1752461812576,3.59,164.83,164.77,6.30895879]
[1752461813783,3.59,164.78,164.77,6.30895879]
[1752461817084,3.59,164.78,164.77,12.37595879]
[1752461818289,3.59,164.78,164.77,6.30895879]
[1752461818989,3.59,164.78,164.77,12.37595879]
[1752461819686,9.6555,164.81,164.78,6.0666]
[1752461819891,3.59,164.83,164.79,2.90895879]
[1752461820287,3.59,164.83,164.79,6.23895879]
[1752461820586,3.34,164.8,164.75,3.33]
[1752461820789,3.34,164.79,164.73,3.33]
[1752461820989,3.34,164.79,164.68,524.22]
[1752461820990,3.34,164.79,164.72,2.90895879]
[1752461821187,3.34,164.79,164.68,2.90895879]
[1752461821188,2.90895879,164.76,164.68,2.90895879]
[1752461821388,3.34,164.75,164.69,3.33]
[1752461822198,3.34,164.75,164.7,3.33]
[1752461822386,3.34,164.75,164.71,3.33]
[1752461822589,6.0685,164.73,164.71,3.33]
[1752461822787,3.34,164.72,164.71,3.33]
[1752461823088,6.0682,164.74,164.7,2.90895879]
[1752461823288,3.34,164.73,164.72,3.33]
[1752461823997,9.4085,164.73,164.72,3.33]
[1752461824593,6.0685,164.73,164.7,2.90895879]
[1752461824886,3.34,164.72,164.71,3.33]
[1752461825086,9.4088,164.72,164.71,3.33]
[1752461825291,3.34,164.72,164.7,6.23895879]
[1752461825693,3.34,164.72,164.7,3.33]
[1752461825897,9.4092,164.71,164.7,3.33]
[1752461826300,6.0695,164.7,164.69,3.33]
[1752461826487,3.34,164.69,164.68,3.33]
[1752461827494,2.90895879,164.73,164.67,6.23895879]
[1752461827695,3.34,164.7,164.67,6.23895879]
[1752461827891,2.90895879,164.75,164.68,3.33]
[1752461828096,3.34,164.7,164.69,3.33]
[1752461830198,3.34,164.72,164.69,8.97885879]
[1752461830398,9.4088,164.73,164.7,3.33]
[1752461830701,3.34,164.73,164.72,3.33]
[1752461831905,3.34,164.74,164.73,3.33]
[1752461832105,3.34,164.74,164.73,6.23895879]
[1752461834309,3.34,164.74,164.64,183.46895879]
[1752461834310,3.34,164.74,164.64,3.33]
[1752461834607,3.34,164.74,164.7,3.33]
[1752461834808,3.34,164.73,164.72,3.33]
[1752461836805,3.34,164.76,164.72,3.33]
[1752461836997,3.34,164.76,164.73,8.97705879]
[1752461837202,2.90895879,164.81,164.73,2.90895879]
[1752461837406,3.34,164.75,164.74,3.33]
[1752461837803,9.4079,164.75,164.72,3.33]
[1752461838012,3.34,164.73,164.72,3.33]
[1752461838208,3.34,164.76,164.7,3.33]
[1752461838509,3.34,164.72,164.7,3.33]
[1752461838708,3.34,164.72,164.71,3.33]
[1752461838909,5.09472927,164.79,164.71,3.33]
[1752461839115,3.34,164.78,164.71,2.90895879]
[1752461839313,3.34,164.78,164.72,3.33]
[1752461839506,6.0679,164.75,164.72,3.33]
[1752461839710,3.34,164.77,164.72,3.33]
[1752461839910,3.34,164.77,164.71,2.90895879]
[1752461840106,3.34,164.72,164.71,3.33]
[1752461840307,3.34,164.75,164.68,3.33]
[1752461840505,6.0695,164.71,164.68,3.33]
[1752461840709,3.34,164.69,164.68,3.33]
[1752461842209,3.34,164.73,164.68,6.0703]
[1752461842511,3.34,164.73,164.69,3.33]
[1752461842912,3.34,164.7,164.69,3.33]
[1752461843511,3.34,164.7,164.66,3.33]
[1752461843717,3.34,164.7,164.67,6.03888811]
[1752461843907,6.0703,164.68,164.67,6.03888811]
[1752461844107,9.4103,164.68,164.67,6.03888811]
[1752461844517,6.0706,164.67,164.66,3.33]
[1752461844821,3.34,164.67,164.66,9.36998411]
[1752461845109,6.0704,164.68,164.66,9.36998411]
[1752461845308,3.34,164.7,164.67,12.2789429]
[1752461845509,9.4098,164.7,164.68,6.03998411]
[1752461845704,9.4098,164.7,164.69,9.36998411]
[1752461846413,6.0693,164.71,164.69,9.36998411]
[1752461846612,9.4093,164.71,164.7,9.36998411]
[1752461846805,9.4093,164.71,164.7,6.03998411]
[1752461848812,6.0693,164.71,164.7,6.03218756]
[1752461849511,9.4093,164.71,164.7,6.03218756]
[1752461849808,3.34,164.72,164.71,3.33]
[1752461850014,3.34,164.74,164.71,3.33]
[1752461850210,9.4086,164.73,164.72,3.33]
[1752461850517,3.43,164.78,164.73,3.43]
[1752461852216,9.4981,164.74,164.73,3.43]
[1752461852817,3.43,164.73,164.72,3.43]
[1752461853619,9.4987,164.73,164.7,6.33895879]
[1752461853813,3.43,164.72,164.71,3.43]
[1752461855923,9.4988,164.72,164.71,3.43]
[1752461856422,3.43,164.74,164.71,3.43]
[1752461856622,3.43,164.73,164.72,3.43]
[1752461857125,9.4985,164.73,164.72,3.43]
[1752461860624,3.43,164.77,164.72,9.4987]
[1752461860830,3.43,164.76,164.73,3.43]
[1752461862322,3.43,164.76,164.74,6.04977592]
[1752461862528,9.4973,164.76,164.75,6.04977592]
[1752461864437,14.59202927,164.76,164.75,6.04977592]
[1752461864734,3.43,164.7,164.67,8.97935879]
[1752461864936,2.90895879,164.77,164.69,6.34825054]
[1752461864937,3.43,164.74,164.69,6.34825054]
[1752461865241,9.4981,164.74,164.71,2.91825054]
[1752461865430,3.43,164.76,164.64,2.91825054]
[1752461865634,3.43,164.76,164.75,3.43]
[1752461867029,9.4973,164.76,164.75,3.43]
[1752461867431,3.43,164.76,164.73,2.91690193]
[1752461867630,8.52472927,164.79,164.74,3.43]
[1752461867829,3.43,164.78,164.74,3.43]
[1752461868026,3.43,164.78,164.73,6.34690193]
[1752461868233,6.0681,164.74,164.73,6.34690193]
[1752461868433,9.4981,164.74,164.73,3.43]
[1752461868929,9.4981,164.74,164.71,8.98600193]
[1752461869135,6.0684,164.73,164.69,2.91690193]
[1752461869337,3.43,164.72,164.71,3.43]
[1752461869726,6.0684,164.73,164.71,3.43]
[1752461869929,9.4984,164.73,164.72,3.43]
[1752461871737,9.4988,164.72,164.71,6.34690193]
[1752461872035,3.43,164.72,164.71,6.34690193]
[1752461872435,6.0687,164.73,164.71,6.34690193]
[1752461872638,6.0687,164.73,164.72,3.43]
[1752461873937,9.4982,164.74,164.72,3.43]
[1752461874138,9.4982,164.74,164.73,3.43]
[1752461874334,5.10333299,164.78,164.73,3.43]
[1752461874541,3.43,164.75,164.73,3.43]
[1752461874738,9.4977,164.75,164.74,3.43]
[1752461875336,6.0674,164.76,164.74,3.43]
[1752461875540,9.4974,164.76,164.75,3.43]
[1752461875733,9.4974,164.76,164.74,3.43]
[1752461875734,3.43,164.75,164.74,3.43]
[1752461876433,3.43,164.76,164.75,3.43]
[1752461877438,3.43,164.76,164.75,9.47916497]
[1752461877936,9.4973,164.76,164.75,3.43]
[1752461878134,9.4973,164.76,164.75,6.04934706]
[1752461880448,3.59,164.78,164.76,3.56]
[1752461880738,1e-08,164.83,164.77,8.96500864]
[1752461880932,13.41906624,164.92,164.83,3.56]
[1752461881135,3.59,164.89,164.86,2.91288273]
[1752461881332,6.0623,164.9,164.87,9.60934706]
[1752461881543,3.59,164.89,164.88,3.56]
[1752461881932,3.59,164.89,164.88,9.59989456]
[1752461882236,6.0623,164.9,164.88,9.59989456]
[1752461882237,9.6523,164.9,164.88,9.59989456]
[1752461882434,9.6523,164.9,164.89,6.03989456]
[1752461882837,9.6523,164.9,164.89,9.59989456]
[1752461883441,9.6523,164.9,164.89,6.03989456]
[1752461885933,6.0638,164.86,164.84,2.91288273]
[1752461886134,9.6538,164.86,164.85,6.20280387]
[1752461886540,9.6538,164.86,164.85,6.19922362]
[1752461889042,6.0647,164.84,164.8,2.91288273]
[1752461889238,3.59,164.83,164.82,3.56]
[1752461889443,3.59,164.83,164.82,9.76033036]
[1752461890248,6.0647,164.84,164.82,9.76033036]
[1752461890447,9.6547,164.84,164.83,9.76033036]
[1752461891550,9.6547,164.84,164.83,6.20033036]
[1752461892050,9.6547,164.84,164.83,9.76033036]
[1752461892251,9.6547,164.84,164.83,6.20033036]
[1752461893151,9.6547,164.84,164.83,3.036e-05]
[1752461894953,9.6557,164.81,164.8,3.56]
[1752461895350,3.59,164.81,164.8,3.56]
[1752461896156,9.6555,164.81,164.8,3.56]
[1752461896755,9.6555,164.81,164.78,3.56]
[1752461896957,3.59,164.8,164.79,3.56]